lending/lending_fUSD_20250429
["ID","MTS","AMOUNT","RATE_DAILY","PERIOD"]
[359372654,1745954433324,-500.0,0.00044507,30]
[359372655,1745954433363,-503.88,0.00044592,31]
[359372656,1745954433403,-1000.0,0.00044633,120]
[359372657,1745954433446,-1684.98,0.00044657,120]
[359372658,1745954433487,-436.09081,0.00044688,30]
[359372659,1745954433527,-508.16,0.000447,120]
[359372660,1745954433569,-150.0,0.00044723,120]
[359372661,1745954433611,-336.0,0.00044877,90]
[359372662,1745954433653,-436.09081,0.00044888,30]
[359372663,1745954433694,-235.79875642,0.000449,30]
[359372664,1745954433734,-223.13557343,0.000449,120]
[359372665,1745954433775,-160.0,0.000449,75]
[359372666,1745954433816,-1000.0,0.00044907,120]
[359372667,1745954433857,-150.0,0.00044933,120]
[359372668,1745954433898,-174.37,0.00044989,120]
[359372669,1745954433942,-100000.0,0.0004499,30]
[359372670,1745954433983,-48999.999999,0.0004499,120]
[359372671,1745954434024,-2000.0,0.00044998,120]
[359372672,1745954434064,-300.0,0.00044999,30]
[359372673,1745954434104,-666.0,0.00044999,30]
[359372674,1745954434144,-1000.0,0.00044999,120]
[359372675,1745954434185,-155.95328282,0.00044999,120]
[359372676,1745954434224,-1638.48799949,0.00045,120]
[359372677,1745954434263,-1071.18675049,0.00045,30]
[359372678,1745954434302,-74900.0,0.00045,90]
[359372679,1745954434341,-150.0,0.00045,60]
[359372680,1745954434382,-10000.0,0.00045,120]
[359372681,1745954434427,-268.31019152,0.00045,60]
[359372682,1745954434467,-26189.78322,0.00045,120]
[359372683,1745954434507,-7867.833032,0.00045,90]
[359372684,1745954434548,-16111.0,0.00045,30]
[359372685,1745954434588,-20000.0,0.00045,30]
[359372686,1745954434627,-166145.94260206,0.00045,120]
[359372687,1745954434666,-500000.0,0.00045,30]
[359372688,1745954434706,-2000.0,0.00045,120]
[359372689,1745954434746,-900.0,0.00045,46]
[359372690,1745954434787,-413.59650346,0.00045,30]
[359372691,1745954434830,-639.74222008,0.00045,30]
[359372692,1745954434871,-3303.03439919,0.00045,120]
[359372693,1745954434911,-1000.0,0.00045,60]
[359372694,1745954434949,-1500.0,0.00045,30]
[359372695,1745954434989,-2396.18623414,0.00045,120]
[359372696,1745954435191,-217443.40865183,0.00045,120]
[359372697,1745954435230,-151.58,0.00045,85]
[359372698,1745954435269,-34743.0,0.00045,60]
[359372699,1745954435307,-190.6801831,0.00045,30]
[359372700,1745954435349,-8019.43073247,0.00045,60]
[359372701,1745954435387,-1885.69,0.00045,120]
[359372702,1745954435429,-1885.69,0.00045,120]
[359372703,1745954435469,-1885.69,0.00045,120]
[359372704,1745954435509,-1885.69,0.00045,120]
[359372705,1745954435549,-1885.69,0.00045,120]
[359372706,1745954435589,-471.48,0.00045,120]
[359372707,1745954435629,-471.48,0.00045,120]
[359372708,1745954435668,-471.48,0.00045,120]
[359372709,1745954435707,-471.48,0.00045,120]
[359372710,1745954435746,-471.48,0.00045,120]
[359372711,1745954435785,-4145.0,0.00045,30]
[359372712,1745954435825,-2150.94354592,0.00045,120]
[359372713,1745954435864,-20000.0,0.00045,30]
[359372714,1745954435903,-753.16,0.00045,120]
[359372715,1745954435941,-706.0,0.00045,120]
[359372716,1745954435980,-2030.96,0.00045,120]
[359372717,1745954436019,-20000.0,0.00045,60]
[359372718,1745954436058,-50000.0,0.00045,60]
[359372719,1745954436099,-399.32606785,0.00045,120]
[359372720,1745954436138,-200.0,0.00045,120]
[359372721,1745954436177,-7693.271129,0.00045,120]
[359372722,1745954436219,-157.2,0.00045,120]
[359372723,1745954436260,-295.13320789,0.00045,120]
[359372724,1745954436300,-151.0,0.00045,30]
[359372725,1745954436340,-154085.15802949,0.00045029,60]
[359372726,1745954441604,-348002.25253134,0.00045029,60]
[359372727,1745954441645,-800810.8900274,0.00045029,60]
[359372728,1745954441689,-274.1117082,0.00045037,30]
[359372729,1745954441730,-153.51000643,0.00045069,120]
[359372730,1745954441771,-436.09081,0.00045088,30]
[359372731,1745954441810,-508.16,0.000451,120]
[359372732,1745954441850,-1000.0,0.00045181,120]
[359372733,1745954441889,-228518.3328156,0.000452,120]
[359372734,1745954441928,-1000.0,0.00045205,120]
[359372735,1745954441968,-150.0,0.00045278,120]
[359372736,1745954442008,-436.09081,0.00045288,30]
[359372737,1745954442047,-1110.56373862,0.00045455,120]
[359372738,1745954442087,-1000.0,0.00045479,120]
[359372739,1745954442124,-1684.98,0.00045479,120]
[359372740,1745954442162,-436.09081,0.00045488,30]
[359372741,1745954442200,-1000.0,0.00045499,120]
[359372742,1745954442238,-300.0,0.000455,90]
[359372743,1745954442276,-200.0,0.000455,120]
[359372744,1745954442312,-2869.85517463,0.00045533,120]
[359372745,1745954442350,-508.16,0.000456,120]
[359372746,1745954442387,-1000.0,0.00045678,31]
[359372747,1745954442433,-436.09081,0.00045688,30]
[359372748,1745954442473,-20610.4,0.000457,120]
[359372749,1745954442511,-161.02282493,0.000457,120]
[359372750,1745954442554,-152.81,0.000457,39]
[359372751,1745954442599,-152.81,0.000457,39]
[359372752,1745954442644,-152.81,0.000457,39]
[359372753,1745954442688,-152.81,0.000457,39]
[359372754,1745954442731,-152.81,0.000457,39]
[359372755,1745954442776,-152.81,0.000457,39]
[359372756,1745954442820,-152.81,0.000457,39]
[359372757,1745954442859,-1000.0,0.00045753,120]
[359372758,1745954442901,-150.0,0.00045832,120]
[359372759,1745954442943,-155.63,0.00045833,120]
[359372760,1745954442984,-155.95,0.00045833,120]
[359372761,1745954443024,-153.51,0.00045833,120]
[359372762,1745954443064,-436.09081,0.00045888,30]
[359372763,1745954443102,-173.31041355,0.00045899,120]
[359372764,1745954443140,-1573.39067175,0.000459,119]
[359372765,1745954443178,-195.0,0.000459,120]
[359372766,1745954443216,-2386.0,0.000459,90]
[359372767,1745954443256,-160.0,0.000459,78]
[359372768,1745954443295,-499.22,0.00045903,30]
[359372769,1745954443334,-499.0,0.00045903,30]
[359372770,1745954443375,-2000.0,0.0004591,30]
[359372771,1745954443416,-1000.0,0.00045914,120]
[359372772,1745954443456,-55464.2522069,0.00045914,30]
[359372773,1745954443686,-1284.7382055,0.00045979,120]
[359372774,1745954443726,-1000.0,0.0004598,60]
[359372775,1745954443767,-160.0,0.00045987,30]
[359372776,1745954443806,-2000.0,0.00045987,30]
[359372777,1745954443844,-1000.0,0.00045999,120]
[359372778,1745954443886,-410.0,0.00046,120]
[359372779,1745954443927,-151.76072582,0.00046,120]
[359372780,1745954443969,-385.96174727,0.00046,60]
[359372781,1745954444012,-650.0,0.00046,120]
[359372782,1745954444051,-150.0,0.00046,30]
[359372783,1745954444090,-305.0,0.00046,120]
[359372784,1745954444128,-1000.0,0.00046,60]
[359372785,1745954444167,-900.0,0.00046,47]
[359372786,1745954444208,-7000.0,0.00046,120]
[359372787,1745954444248,-2535.0,0.00046,120]
[359372788,1745954444288,-316.0,0.00046,120]
[359372789,1745954444326,-1594.9122517,0.00046,120]
[359372790,1745954444364,-200.0,0.00046,120]
[359372791,1745954444407,-8484.72103839,0.00046,120]
[359372792,1745954444448,-1000.0,0.00046027,120]
[359372793,1745954444490,-436.09081,0.00046088,30]
[359372794,1745954444532,-150.0,0.00046142,120]
[359372795,1745954444571,-436.09081,0.00046288,30]
[359372796,1745954444611,-1000.0,0.00046301,120]
[359372797,1745954444653,-1684.98,0.00046301,120]
[359372798,1745954444692,-150.0,0.00046364,120]
[359372799,1745954444730,-436.09081,0.00046488,30]
[359372800,1745954444768,-200.0,0.000465,120]
[359372801,1745954444808,-1000.0,0.00046575,120]
[359372802,1745954444848,-151.0,0.00046575,30]
[359372803,1745954444888,-151.0,0.00046575,120]
[359372804,1745954444927,-151.0,0.00046575,70]
[359372805,1745954444970,-436.09081,0.00046688,30]
[359372806,1745954445010,-230.9435448,0.000468,120]
[359372807,1745954445052,-1380.72989047,0.00046847,30]
[359372808,1745954445098,-1000.0,0.00046849,120]
[359372809,1745954445143,-436.09081,0.00046888,30]
[359372810,1745954445181,-1108.35781288,0.0004689,45]
[359372811,1745954445221,-20000.0,0.00047,120]
[359372812,1745954445261,-10000.0,0.00047,120]
[359372813,1745954445302,-900.0,0.00047,48]
[359372814,1745954445346,-4961.3738,0.00047,120]
[359372815,1745954445389,-500.0,0.00047,45]
[359372816,1745954445435,-200.0,0.00047,120]
[359372817,1745954445483,-343.0,0.00047121,90]
[359372818,1745954445522,-2000.0,0.00047123,120]
[359372819,1745954445563,-1000.0,0.00047123,120]
[359372820,1745954445603,-1684.98,0.00047123,120]
[359372821,1745954445651,-1000.0,0.00047397,120]
[359372822,1745954445697,-500.0,0.000475,45]
[359372823,1745954445737,-200.0,0.000475,120]
[359372824,1745954445777,-2000.0,0.00047671,120]
[359372825,1745954445817,-1000.0,0.00047671,120]
[359372826,1745954445856,-150.0,0.00047709,30]
[359372827,1745954445894,-150.0,0.00047709,30]
[359372828,1745954445934,-150.0,0.00047709,30]
[359372829,1745954445973,-150.0,0.00047709,30]
[359372830,1745954446011,-150.0,0.00047709,30]
[359372831,1745954446053,-151.21,0.00047709,30]
[359372832,1745954446095,-150.0,0.00047838,120]
[359372833,1745954446136,-1000.0,0.00047945,120]
[359372834,1745954446177,-1684.98,0.00047945,120]
[359372835,1745954446218,-23128.95,0.00048,60]
[359372836,1745954446257,-400.0,0.00048,120]
[359372837,1745954446295,-290.1757272,0.00048,120]
[359372838,1745954446332,-10221.75,0.00048,120]
[359372839,1745954446374,-1000.0,0.00048,120]
[359372840,1745954446413,-697.44529401,0.00048,120]
[359372841,1745954446452,-900.0,0.00048,49]
[359372842,1745954446490,-500.0,0.00048,60]
[359372843,1745954446529,-9995.0,0.00048,120]
[359372844,1745954446569,-1594.9122517,0.00048,120]
[359372845,1745954446608,-200.0,0.00048,120]
[359372846,1745954446648,-8484.72103839,0.00048,120]
[359372847,1745954446687,-300.0,0.000482,30]
[359372848,1745954446726,-2000.0,0.00048219,120]
[359372849,1745954446765,-1000.0,0.00048219,120]
[359372850,1745954446805,-217.0,0.0004822,120]
[359372851,1745954446847,-1000.0,0.00048493,120]
[359372852,1745954446886,-350.0,0.00048493,120]
[359372853,1745954446925,-253.74832307,0.000485,120]
[359372854,1745954446966,-286.0,0.000485,120]
[359372855,1745954447003,-200.0,0.000485,120]
[359372856,1745954447041,-1606.55377649,0.000486,120]
[359372857,1745954447081,-2000.0,0.00048767,120]
[359372858,1745954447121,-1000.0,0.00048767,120]
[359372859,1745954447163,-1684.98,0.00048767,120]
[359372860,1745954447208,-240.0,0.000488,120]
[359372861,1745954447250,-373.95,0.000488,120]
[359372862,1745954447292,-2500.0,0.0004896,40]
[359372863,1745954447332,-900.0,0.00049,50]
[359372864,1745954447374,-2300.0,0.00049,120]
[359372865,1745954447419,-10000.0,0.00049,120]
[359372866,1745954447465,-10000.0,0.00049,120]
[359372867,1745954447619,-10000.0,0.00049,120]
[359372868,1745954447661,-290.0,0.00049,40]
[359372869,1745954447702,-6000.0,0.00049,30]
[359372870,1745954447749,-20000.0,0.00049,60]
[359372871,1745954447790,-200.0,0.00049,120]
[359372872,1745954447838,-1000.0,0.00049041,120]
[359372873,1745954447878,-5000.0,0.000493,120]
[359372874,1745954447917,-2000.0,0.00049315,120]
[359372875,1745954447956,-1000.0,0.00049315,120]
[359372876,1745954447994,-600.0,0.00049315,30]
[359372877,1745954448035,-179.24769341,0.00049315,30]
[359372878,1745954448075,-1000.0,0.00049315,120]
[359372879,1745954448114,-500.0,0.00049315,31]
[359372880,1745954448153,-968.97001017,0.000494,120]
[359372881,1745954448192,-284.11330003,0.000494,120]
[359372882,1745954448230,-2000.0,0.0004944,40]
[359372883,1745954448268,-250906.0,0.0004944,30]
[359372884,1745954448307,-5000.0,0.000495,120]
[359372885,1745954448346,-221.8519047,0.000495,120]
[359372886,1745954448385,-200.0,0.000495,120]
[359372887,1745954448426,-2000.0,0.0004954,40]
[359372888,1745954448466,-1000.0,0.00049589,120]
[359372889,1745954448506,-1684.98,0.00049589,120]
[359372890,1745954448547,-153.0,0.00049589,60]
[359372891,1745954448587,-153.0,0.00049589,60]
[359372892,1745954448626,-153.0,0.00049589,60]
[359372893,1745954448665,-153.0,0.00049589,60]
[359372894,1745954448704,-153.0,0.00049589,60]
[359372895,1745954448745,-153.0,0.00049589,60]
[359372896,1745954448788,-153.0,0.00049589,60]
[359372897,1745954448828,-153.0,0.00049589,60]
[359372898,1745954448868,-153.0,0.00049589,60]
[359372899,1745954448910,-153.0,0.00049589,60]
[359372900,1745954448950,-153.0,0.00049589,60]
[359372901,1745954448990,-153.0,0.00049589,60]
[359372902,1745954449030,-153.0,0.00049589,60]
[359372903,1745954449071,-153.0,0.00049589,60]
[359372904,1745954449112,-153.0,0.00049589,60]
[359372905,1745954449152,-153.0,0.00049589,60]
[359372906,1745954449193,-153.0,0.00049589,60]
[359372907,1745954449233,-153.0,0.00049589,60]
[359372908,1745954449274,-153.0,0.00049589,60]
[359372909,1745954449315,-153.0,0.00049589,60]
[359372910,1745954449357,-153.0,0.00049589,60]
[359372911,1745954449401,-153.0,0.00049589,60]
[359372912,1745954449443,-153.0,0.00049589,60]
[359372913,1745954449485,-153.0,0.00049589,60]
[359372914,1745954449528,-153.0,0.00049589,60]
[359372915,1745954449568,-153.0,0.00049589,60]
[359372916,1745954449608,-153.0,0.00049589,60]
[359372917,1745954449649,-153.0,0.00049589,60]
[359372918,1745954449689,-153.0,0.00049589,60]
[359372919,1745954449728,-153.0,0.00049589,60]
[359372920,1745954449770,-153.0,0.00049589,60]
[359372921,1745954449813,-153.0,0.00049589,60]
[359372922,1745954449854,-153.0,0.00049589,60]
[359372923,1745954449895,-153.0,0.00049589,60]
[359372924,1745954449938,-153.0,0.00049589,60]
[359372925,1745954449980,-153.0,0.00049589,60]
[359372926,1745954450022,-153.0,0.00049589,60]
[359372927,1745954450065,-153.0,0.00049589,60]
[359372928,1745954450106,-153.0,0.00049589,60]
[359372929,1745954450146,-153.0,0.00049589,60]
[359372930,1745954450187,-153.0,0.00049589,60]
[359372931,1745954450229,-153.0,0.00049589,60]
[359372932,1745954450271,-153.0,0.00049589,60]
[359372933,1745954450311,-153.0,0.00049589,60]
[359372934,1745954450350,-153.0,0.00049589,60]
[359372935,1745954450390,-153.0,0.00049589,60]
[359372936,1745954450430,-153.0,0.00049589,60]
[359372937,1745954450468,-153.0,0.00049589,60]
[359372938,1745954450507,-153.0,0.00049589,60]
[359372939,1745954450547,-153.0,0.00049589,60]
[359372940,1745954450586,-153.0,0.00049589,60]
[359372941,1745954450624,-153.0,0.00049589,60]
[359372942,1745954450666,-153.0,0.00049589,60]
[359372943,1745954450706,-153.0,0.00049589,60]
[359372944,1745954450750,-153.0,0.00049589,60]
[359372945,1745954450789,-153.0,0.00049589,60]
[359372946,1745954450828,-153.0,0.00049589,60]
[359372947,1745954450868,-153.0,0.00049589,60]
[359372948,1745954450909,-153.0,0.00049589,60]
[359372949,1745954450949,-153.0,0.00049589,60]
[359372950,1745954450991,-153.0,0.00049589,60]
[359372951,1745954451032,-153.0,0.00049589,60]
[359372952,1745954451072,-153.0,0.00049589,60]
[359372953,1745954451111,-153.0,0.00049589,60]
[359372954,1745954451152,-153.0,0.00049589,60]
[359372955,1745954451192,-153.0,0.00049589,60]
[359372956,1745954451231,-153.0,0.00049589,60]
[359372957,1745954451270,-153.0,0.00049589,60]
[359372958,1745954451308,-153.0,0.00049589,60]
[359372959,1745954451349,-153.0,0.00049589,60]
[359372960,1745954451389,-153.0,0.00049589,60]
[359372961,1745954451429,-153.0,0.00049589,60]
[359372962,1745954451470,-153.0,0.00049589,60]
[359372963,1745954451626,-153.0,0.00049589,60]
[359372964,1745954451668,-153.0,0.00049589,60]
[359372965,1745954451706,-153.0,0.00049589,60]
[359372966,1745954451746,-153.0,0.00049589,60]
[359372967,1745954451786,-153.0,0.00049589,60]
[359372968,1745954451826,-153.0,0.00049589,60]
[359372969,1745954451867,-153.0,0.00049589,60]
[359372970,1745954451908,-153.0,0.00049589,60]
[359372971,1745954451949,-153.0,0.00049589,60]
[359372972,1745954451989,-153.0,0.00049589,60]
[359372973,1745954452027,-153.0,0.00049589,60]
[359372974,1745954452064,-153.0,0.00049589,60]
[359372975,1745954452104,-153.0,0.00049589,60]
[359372976,1745954452142,-153.0,0.00049589,60]
[359372977,1745954452179,-153.0,0.00049589,60]
[359372978,1745954452216,-153.0,0.00049589,60]
[359372979,1745954452253,-153.0,0.00049589,60]
[359372980,1745954452291,-153.0,0.00049589,60]
[359372981,1745954452331,-153.0,0.00049589,60]
[359372982,1745954452374,-153.0,0.00049589,60]
[359372983,1745954452412,-153.0,0.00049589,60]
[359372984,1745954452450,-153.0,0.00049589,60]
[359372985,1745954452488,-153.0,0.00049589,60]
[359372986,1745954452528,-153.0,0.00049589,60]
[359372987,1745954452565,-153.0,0.00049589,60]
[359372988,1745954452603,-153.0,0.00049589,60]
[359372989,1745954452640,-153.0,0.00049589,60]
[359372990,1745954452677,-153.0,0.00049589,60]
[359372991,1745954452714,-153.0,0.00049589,60]
[359372992,1745954452750,-153.0,0.00049589,60]
[359372993,1745954452788,-153.0,0.00049589,60]
[359372994,1745954452830,-153.0,0.00049589,60]
[359372995,1745954452867,-153.0,0.00049589,60]
[359372996,1745954452906,-153.0,0.00049589,60]
[359372997,1745954452948,-153.0,0.00049589,60]
[359372998,1745954452988,-153.0,0.00049589,60]
[359372999,1745954453026,-153.0,0.00049589,60]
[359373000,1745954453065,-153.0,0.00049589,60]
[359373001,1745954453103,-153.0,0.00049589,60]
[359373002,1745954453143,-153.0,0.00049589,60]
[359373003,1745954453180,-153.0,0.00049589,60]
[359373004,1745954453218,-153.0,0.00049589,60]
[359373005,1745954453256,-153.0,0.00049589,60]
[359373006,1745954453295,-153.0,0.00049589,60]
[359373007,1745954453332,-153.0,0.00049589,60]
[359373008,1745954453369,-153.0,0.00049589,60]
[359373009,1745954453413,-153.0,0.00049589,60]
[359373010,1745954453452,-153.0,0.00049589,60]
[359373011,1745954453492,-153.0,0.00049589,60]
[359373012,1745954453530,-153.0,0.00049589,60]
[359373013,1745954453569,-153.0,0.00049589,60]
[359373014,1745954453610,-153.0,0.00049589,60]
[359373015,1745954453649,-153.0,0.00049589,60]
[359373016,1745954453687,-153.0,0.00049589,60]
[359373017,1745954453728,-153.0,0.00049589,60]
[359373018,1745954453769,-153.0,0.00049589,60]
[359373019,1745954453807,-187.77884433,0.0004977,120]
[359373020,1745954453846,-175.36314026,0.000498,30]
[359373021,1745954453884,-151.14816724,0.000498,120]
[359373022,1745954453923,-2000.0,0.00049863,120]
[359373023,1745954453962,-1000.0,0.00049863,120]
[359373024,1745954454002,-3000.0,0.0004987,40]
[359373025,1745954454039,-198.31511422,0.000499,120]
[359373026,1745954454078,-2481.0,0.0004993,120]
[359373027,1745954454121,-3000.0,0.00049998,120]
[359373028,1745954454160,-2000.51,0.00049998,120]
[359373029,1745954454203,-421.8086613,0.00049999,120]
[359373030,1745954454244,-174.06883378,0.00049999,120]
[359373031,1745954454285,-500.0,0.00049999,120]
[359373032,1745954454324,-319.0674496,0.00049999,120]
[359373033,1745954454363,-173.40584896,0.00049999,120]
[359373034,1745954454407,-173.39097348,0.00049999,120]
[359373035,1745954454450,-500.0,0.00049999,120]
[359373036,1745954454492,-500.0,0.00049999,120]
[359373037,1745954454533,-500.0,0.00049999,120]
[359373038,1745954454590,-500.0,0.00049999,120]
[359373039,1745954454633,-500.0,0.00049999,120]
[359373040,1745954454674,-500.0,0.00049999,120]
[359373041,1745954454715,-500.0,0.00049999,120]
[359373042,1745954454763,-500.0,0.00049999,120]
[359373043,1745954454809,-500.0,0.00049999,120]
[359373044,1745954454852,-500.0,0.00049999,120]
[359373045,1745954454895,-500.0,0.00049999,120]
[359373046,1745954454938,-500.0,0.00049999,120]
[359373047,1745954454979,-500.0,0.00049999,120]
[359373048,1745954455020,-500.0,0.00049999,120]
[359373049,1745954455061,-500.0,0.00049999,120]
[359373050,1745954455102,-500.0,0.00049999,120]
[359373051,1745954455142,-500.0,0.00049999,120]
[359373052,1745954455181,-500.0,0.00049999,120]
[359373053,1745954455220,-500.0,0.00049999,120]
[359373054,1745954455261,-500.0,0.00049999,120]
[359373055,1745954455299,-500.0,0.00049999,120]
[359373056,1745954455338,-500.0,0.00049999,120]
[359373057,1745954455379,-500.0,0.00049999,120]
[359373058,1745954455586,-250.22198354,0.00049999,120]
[359373059,1745954455627,-500.0,0.00049999,120]
[359373060,1745954455669,-500.0,0.00049999,120]
[359373061,1745954455708,-500.0,0.00049999,120]
[359373062,1745954455748,-500.0,0.00049999,120]
[359373063,1745954455786,-500.0,0.00049999,120]
[359373064,1745954455823,-500.0,0.00049999,120]
[359373065,1745954455862,-425.06659506,0.00049999,120]
[359373066,1745954455901,-50000.0,0.0005,50]
[359373067,1745954455940,-2821.0,0.0005,120]
[359373068,1745954455976,-536.0886296,0.0005,120]
[359373069,1745954456015,-430.0,0.0005,120]
[359373070,1745954456055,-914.09089715,0.0005,120]
[359373071,1745954456090,-190.69994714,0.0005,120]
[359373072,1745954456127,-1413.23126476,0.0005,120]
[359373073,1745954456163,-10000.0,0.0005,120]
[359373074,1745954456198,-364.04642262,0.0005,30]
[359373075,1745954456233,-537.06442,0.0005,120]
[359373076,1745954456268,-250.0,0.0005,120]
[359373077,1745954456304,-562.1340825,0.0005,60]
[359373078,1745954456338,-280.14634381,0.0005,120]
[359373079,1745954456375,-1265.43214836,0.0005,120]
[359373080,1745954456410,-533.47296696,0.0005,120]
[359373081,1745954456445,-228.41349404,0.0005,120]
[359373082,1745954456479,-254.9433438,0.0005,120]
[359373083,1745954456515,-5000.0,0.0005,120]
[359373084,1745954456550,-1000.0,0.0005,120]
[359373085,1745954456586,-598.01,0.0005,120]
[359373086,1745954456623,-2000.0,0.0005,120]
[359373087,1745954456660,-532.0,0.0005,120]
[359373088,1745954456696,-156.42496315,0.0005,30]
[359373089,1745954456731,-182.28925956,0.0005,120]
[359373090,1745954456766,-878.1,0.0005,120]
[359373091,1745954456802,-15746.0,0.0005,120]
[359373092,1745954456839,-1000.0,0.0005,120]
[359373093,1745954456876,-291.0,0.0005,120]
[359373094,1745954456912,-1000.0,0.00050137,120]
[359373095,1745954456948,-336.0,0.00050262,120]
[359373096,1745954456985,-200.0,0.00050301,30]
[359373097,1745954457022,-1684.98,0.0005041,120]
[359373098,1745954457057,-2000.0,0.00050411,120]
[359373099,1745954457094,-1000.0,0.00050411,120]
[359373100,1745954457129,-427310.0,0.00050444,30]
[359373101,1745954457165,-5000.0,0.000505,120]
[359373102,1745954457202,-250.0,0.000505,120]
[359373103,1745954457238,-664.67,0.00050684,30]
[359373104,1745954457276,-1000.0,0.00050685,120]
[359373105,1745954457312,-2000.0,0.00050959,120]
[359373106,1745954457348,-1000.0,0.00050959,120]
[359373107,1745954457391,-50000.0,0.00051,51]
[359373108,1745954457431,-250.0,0.00051,120]
[359373109,1745954457468,-56470.87405676,0.00051,45]
[359373110,1745954457507,-2000.0,0.00051,120]
[359373111,1745954457543,-1242.47,0.00051,120]
[359373112,1745954457580,-291.37565107,0.00051,60]
[359373113,1745954457618,-5000.0,0.00051,120]
[359373114,1745954457655,-10000.0,0.00051,120]
[359373115,1745954457692,-250000.0,0.00051,120]
[359373116,1745954457731,-3189.8245034,0.00051,120]
[359373117,1745954457769,-16969.44207678,0.00051,120]
[359373118,1745954457812,-1684.98,0.00051232,120]
[359373119,1745954457857,-1000.0,0.00051233,120]
[359373120,1745954457900,-200.0,0.00051288,30]
[359373121,1745954457944,-165.73247556,0.00051365,30]
[359373122,1745954457989,-3000.0,0.0005144,40]
[359373123,1745954458032,-250.0,0.000515,120]
[359373124,1745954458073,-664.67,0.00051506,33]
[359373125,1745954458115,-2000.0,0.00051507,120]
[359373126,1745954458157,-1000.0,0.00051507,120]
[359373127,1745954458198,-300.0,0.00051533,30]
[359373128,1745954458235,-1000.0,0.00051781,120]
[359373129,1745954458275,-1407.99822573,0.000518,120]
[359373130,1745954458313,-875.93591203,0.000518,120]
[359373131,1745954458358,-50000.0,0.00052,52]
[359373132,1745954458397,-10000.0,0.00052,30]
[359373133,1745954458436,-876.96,0.00052,120]
[359373134,1745954458473,-3998.49975,0.00052,30]
[359373135,1745954458512,-23128.95,0.00052,60]
[359373136,1745954458549,-900.0,0.00052,120]
[359373137,1745954458587,-410.0,0.00052,120]
[359373138,1745954458624,-5000.0,0.00052,120]
[359373139,1745954458662,-295.80491064,0.00052,120]
[359373140,1745954458701,-150.97035375,0.00052,120]
[359373141,1745954458740,-20197.0,0.00052,120]
[359373142,1745954458777,-200.0,0.00052,120]
[359373143,1745954458815,-200.0,0.00052,120]
[359373144,1745954458853,-41000.0,0.00052,120]
[359373145,1745954458895,-2000.0,0.00052,30]
[359373146,1745954458934,-653.14078389,0.00052,30]
[359373147,1745954458977,-151.0,0.00052,120]
[359373148,1745954459019,-10000.0,0.00052,30]
[359373149,1745954459060,-1184.42146445,0.00052,30]
[359373150,1745954459096,-576.50324986,0.00052,30]
[359373151,1745954459133,-151.0,0.00052,120]
[359373152,1745954459360,-679.51794435,0.00052,30]
[359373153,1745954459403,-2120.24008767,0.00052,120]